bitfinex/quotes_BTCUSD_20260127
["timestamp","ask_amount","ask_price","bid_price","bid_amount"]
[1769490138049,0.02491476,88652.0,88633.0,0.48986357]
[1769490140917,0.31661117,88653.0,88634.0,0.02401808]
[1769490141099,0.02464233,88654.0,88636.0,0.02401808]
[1769490141296,0.02464233,88654.0,88637.0,0.50673069]
[1769490141532,0.02464233,88654.0,88637.0,0.48271261]
[1769490141740,0.26665074,88659.0,88638.0,0.02401808]
[1769490141949,0.11215601,88658.0,88639.0,0.48271261]
[1769490142152,0.26665074,88659.0,88640.0,0.02401808]
[1769490142362,0.11215775,88658.0,88640.0,0.02401808]
[1769490142576,0.26665074,88659.0,88640.0,0.02401808]
[1769490142782,0.11216757,88658.0,88640.0,0.02401808]
[1769490143013,0.26665074,88659.0,88641.0,0.46094533]
[1769490143211,0.11216773,88658.0,88643.0,0.46094533]
[1769490143459,0.0001465,88662.0,88644.0,0.02488313]
[1769490143664,0.11217793,88661.0,88644.0,0.02488313]
[1769490143896,0.11217793,88660.0,88644.0,0.02488313]
[1769490144106,0.11217793,88659.0,88644.0,0.02488313]
[1769490144284,0.11217793,88658.0,88644.0,0.02488313]
[1769490144546,0.11217793,88657.0,88644.0,0.02488313]
[1769490144774,0.0001465,88662.0,88644.0,0.02488313]
[1769490144983,0.11219012,88661.0,88644.0,0.02488313]
[1769490145152,0.11219012,88660.0,88644.0,0.02488313]
[1769490145364,0.11219012,88659.0,88644.0,0.02488313]
[1769490145517,0.11219012,88658.0,88644.0,0.02488313]
[1769490145727,0.11219012,88657.0,88644.0,0.02488313]
[1769490145941,0.0001465,88662.0,88644.0,0.02488313]
[1769490146300,0.11219411,88661.0,88644.0,0.02488313]
[1769490146587,0.11219411,88660.0,88644.0,0.02488313]
[1769490146760,0.11219411,88659.0,88644.0,0.02488313]
[1769490148672,0.11219411,88659.0,88645.0,0.46094533]
[1769490148896,0.0001465,88662.0,88649.0,0.46094533]
[1769490149112,0.11221258,88661.0,88649.0,0.48582846]
[1769490149329,0.11221258,88660.0,88649.0,0.48582846]
[1769490149530,0.11221258,88659.0,88649.0,0.48582846]
[1769490149734,0.0001465,88662.0,88649.0,0.48582846]
[1769490149945,0.1122098,88661.0,88649.0,0.48582846]
[1769490150154,0.1122098,88660.0,88649.0,0.48582846]
[1769490150371,0.1122098,88659.0,88649.0,0.48582846]
[1769490150575,0.0001465,88662.0,88649.0,0.48582846]
[1769490150760,0.11221154,88661.0,88649.0,0.48582846]
[1769490150969,0.11221154,88660.0,88649.0,0.48582846]
[1769490151143,0.11221154,88659.0,88649.0,0.48582846]
[1769490151355,0.11221154,88658.0,88649.0,0.48582846]
[1769490151552,0.0001465,88662.0,88649.0,0.48582846]
[1769490151759,0.11221994,88661.0,88649.0,0.48582846]
[1769490155806,0.11221994,88661.0,88643.0,0.46094533]
[1769490156022,0.11221994,88661.0,88644.0,0.02488313]
[1769490157068,0.11221994,88661.0,88645.0,0.46094533]
[1769490160773,0.11222014,88660.0,88645.0,0.46094533]
[1769490160979,0.11222014,88659.0,88645.0,0.46094533]
[1769490161181,0.11222014,88658.0,88645.0,0.46094533]
[1769490161383,0.11222014,88657.0,88645.0,0.46094533]
[1769490161584,0.11222014,88656.0,88645.0,0.46094533]
[1769490161949,0.11222014,88655.0,88645.0,0.46094533]
[1769490162203,0.02505074,88662.0,88645.0,0.46094533]
[1769490162431,0.1122276,88661.0,88645.0,0.46094533]
[1769490163262,0.1122276,88661.0,88645.0,0.48582846]
[1769490163677,0.1122276,88661.0,88645.0,0.46094533]
[1769490163893,0.1122276,88661.0,88645.0,0.48582846]
[1769490164096,0.1122276,88661.0,88647.0,0.46094533]
[1769490164505,0.1122276,88661.0,88643.0,0.46094533]
[1769490164711,0.1122276,88661.0,88646.0,0.02488313]
[1769490164890,0.1122276,88661.0,88649.0,0.46094533]
[1769490165097,0.1122276,88661.0,88651.0,0.46094533]
[1769490165532,0.1122276,88661.0,88653.0,0.48582846]
[1769490165739,0.1122276,88661.0,88655.0,0.46094533]
[1769490168671,0.0001465,88662.0,88656.0,0.50952818]
[1769490169126,0.2427,88670.0,88657.0,0.02488313]
[1769490169300,0.2427,88670.0,88660.0,0.46094533]
[1769490169463,0.2427,88670.0,88660.0,0.40443935]
[1769490169665,0.2428465,88671.0,88660.0,0.40443935]
[1769490172593,0.02490424,88679.0,88660.0,0.40443935]
[1769490172794,0.02490424,88679.0,88660.0,0.43846917]
[1769490173383,0.02434973,88678.0,88660.0,0.43846917]
[1769490176096,0.02434973,88678.0,88660.0,0.40443935]
[1769490176677,0.02434973,88678.0,88660.0,0.40349896]
[1769490178152,0.02434973,88678.0,88660.0,0.42779755]
[1769490178874,0.02434973,88676.0,88649.0,0.0001465]
[1769490179080,0.45766736,88673.0,88649.0,0.0001465]
[1769490179276,0.02434973,88670.0,88649.0,0.48659282]
[1769490180754,0.02434973,88660.0,88641.0,0.48644632]
[1769490180957,0.02434973,88657.0,88641.0,0.48649302]
[1769490192830,0.01127828,88666.0,88641.0,0.48649302]
[1769490193049,0.45766736,88663.0,88641.0,0.48649302]
[1769490193252,0.45766736,88661.0,88641.0,0.48649302]
[1769490193473,0.02434973,88659.0,88641.0,0.48649302]
[1769490193653,0.45766736,88658.0,88641.0,0.48649302]
[1769490193867,0.02434973,88657.0,88641.0,0.48649302]
[1769490195877,0.02434973,88657.0,88641.0,4.67e-05]
[1769490196187,0.02434973,88655.0,88641.0,4.67e-05]
[1769490198984,0.01127866,88663.0,88641.0,4.67e-05]
[1769490199185,0.45766736,88660.0,88641.0,4.67e-05]
[1769490199361,0.45766736,88660.0,88641.0,0.02434529]
[1769490199660,0.46894665,88658.0,88641.0,0.02434529]
[1769490200040,0.01127917,88659.0,88641.0,0.02434529]
[1769490200284,0.45766736,88656.0,88641.0,4.67e-05]
[1769490200465,0.46604587,88656.0,88641.0,4.67e-05]
[1769490203341,0.48880929,88665.0,88643.0,0.02530831]
[1769490203559,0.11215584,88664.0,88647.0,0.02530831]
[1769490203783,0.11215584,88663.0,88650.0,0.49698686]
[1769490204023,0.11215584,88662.0,88651.0,0.02530831]
[1769490204240,0.48895579,88671.0,88651.0,0.02530831]
[1769490204448,0.11216585,88670.0,88651.0,0.49698686]
[1769490204649,0.11216585,88669.0,88652.0,0.02530831]
[1769490204867,0.11216585,88668.0,88652.0,0.02530831]
[1769490205102,0.48895579,88671.0,88654.0,0.52404118]
[1769490205314,0.48895579,88671.0,88655.0,0.02705432]
[1769490206195,0.0001465,88671.0,88656.0,0.02259058]
[1769490206445,0.0001465,88671.0,88660.0,0.02259058]
[1769490206686,0.0001465,88671.0,88663.0,0.49698686]
[1769490206894,0.0001465,88671.0,88663.0,0.49697438]
[1769490207095,0.0001465,88671.0,88664.0,0.02259058]
[1769490207300,0.0001465,88671.0,88643.0,0.02259058]
[1769490207510,0.0001465,88671.0,88646.0,0.49698686]
[1769490207728,0.48895579,88671.0,88649.0,0.02259058]
[1769490207925,0.48895579,88671.0,88652.0,0.49698686]
[1769490208067,0.48895579,88671.0,88653.0,0.49698686]
[1769490208273,0.48895579,88671.0,88641.0,4.67e-05]
[1769490208274,0.48895579,88671.0,88654.0,0.49698686]
[1769490208677,0.0001465,88671.0,88657.0,0.49698686]
[1769490208858,0.0001465,88671.0,88654.0,0.04969869]
[1769490208859,0.0001465,88671.0,88659.0,0.51957744]
[1769490209423,0.0011465,88671.0,88659.0,0.51957744]
[1769490209805,0.0001465,88671.0,88659.0,0.51957744]
[1769490211535,0.0001465,88671.0,88660.0,0.02259058]
[1769490216876,0.11230845,88670.0,88660.0,0.02259058]
[1769490217085,0.48880929,88668.0,88644.0,0.49698686]
[1769490217283,0.11230845,88667.0,88647.0,0.02259058]
[1769490217545,0.11230845,88667.0,88649.0,0.02259058]
[1769490217753,0.11230845,88667.0,88650.0,0.02259058]
[1769490217930,0.48880929,88664.0,88643.0,0.02259058]
[1769490218075,0.11230845,88663.0,88644.0,0.49698686]
[1769490218281,0.11230845,88663.0,88645.0,0.02259058]
[1769490218491,0.11230845,88663.0,88646.0,0.49698686]
[1769490218984,0.11230845,88663.0,88648.0,0.02259058]
[1769490223776,0.11230845,88663.0,88641.0,4.67e-05]
[1769490223777,0.11230845,88663.0,88649.0,0.49698686]
[1769490223984,0.48880929,88670.0,88652.0,0.02259058]
[1769490224186,0.11231457,88669.0,88652.0,0.51957744]
[1769490224365,0.11231457,88668.0,88652.0,0.51957744]
[1769490224694,0.11231457,88667.0,88652.0,0.51957744]
[1769490224854,0.11231457,88666.0,88652.0,0.51957744]
[1769490225057,0.11231457,88665.0,88652.0,0.51957744]
[1769490225262,0.11231457,88664.0,88652.0,0.51957744]
[1769490225468,0.11231457,88663.0,88652.0,0.57153518]
[1769490225667,0.48880929,88670.0,88652.0,0.57153518]
[1769490225895,0.11231691,88669.0,88652.0,0.57153518]
[1769490226069,0.11231691,88668.0,88652.0,0.57153518]
[1769490226278,0.11231691,88667.0,88652.0,0.57153518]
[1769490226447,0.11231691,88666.0,88652.0,0.57153518]
[1769490226666,0.11231691,88665.0,88652.0,0.51957744]
[1769490226874,0.48880929,88670.0,88652.0,0.51957744]
[1769490226875,0.11231691,88664.0,88652.0,0.51957744]
[1769490227093,0.48880929,88670.0,88653.0,0.02259058]
[1769490227094,0.11231691,88663.0,88653.0,0.02259058]
[1769490227320,0.48880929,88670.0,88653.0,0.51957744]
[1769490227478,0.11232164,88669.0,88653.0,0.51957744]
[1769490227687,0.11232164,88668.0,88654.0,0.02259058]
[1769490227883,0.11232164,88667.0,88654.0,0.49698686]
[1769490228089,0.11232164,88666.0,88655.0,0.02259058]
[1769490228290,0.11232164,88665.0,88655.0,0.02259058]
[1769490228499,0.11232164,88664.0,88655.0,0.02259058]
[1769490228698,0.11232164,88663.0,88655.0,0.02259058]
[1769490228900,0.0001465,88671.0,88655.0,0.02259058]
[1769490229098,0.11232453,88670.0,88655.0,0.02259058]
[1769490229298,0.11232453,88669.0,88655.0,0.02259058]
[1769490229517,0.11232453,88668.0,88655.0,0.02259058]
[1769490230688,0.11232453,88668.0,88655.0,0.49698686]
[1769490230887,0.11232453,88668.0,88656.0,0.02259058]
[1769490231116,0.11232453,88667.0,88656.0,0.02259058]
[1769490231312,0.11232453,88666.0,88656.0,0.02259058]
[1769490231510,0.11232453,88665.0,88656.0,0.02259058]
[1769490231739,0.11232453,88664.0,88656.0,0.02259058]
[1769490231939,0.11232453,88663.0,88656.0,0.02259058]
[1769490232138,0.0001465,88671.0,88656.0,0.02259058]
[1769490232336,0.11230815,88670.0,88656.0,0.02259058]
[1769490232544,0.11230815,88669.0,88656.0,0.02259058]
[1769490232742,0.11230815,88668.0,88656.0,0.02259058]
[1769490232978,0.11230815,88667.0,88656.0,0.02259058]
[1769490233133,0.11230815,88666.0,88656.0,0.02259058]
[1769490233336,0.11230815,88665.0,88656.0,0.02259058]
[1769490233539,0.11230815,88664.0,88656.0,0.02259058]
[1769490233737,0.11230815,88663.0,88656.0,0.02259058]
[1769490234129,0.11230815,88662.0,88656.0,0.02259058]
[1769490234477,0.0001465,88671.0,88656.0,0.02259058]
[1769490234663,0.11233328,88670.0,88656.0,0.02259058]
[1769490234847,0.11233328,88669.0,88656.0,0.02259058]
[1769490235053,0.11233328,88668.0,88656.0,0.02259058]
[1769490235258,0.11233328,88667.0,88656.0,0.02259058]
[1769490235465,0.11233328,88666.0,88656.0,0.02259058]
[1769490235665,0.11233328,88665.0,88656.0,0.02259058]
[1769490235864,0.11233328,88664.0,88656.0,0.02259058]
[1769490236141,0.11233328,88663.0,88656.0,0.02259058]
[1769490236361,0.11233328,88662.0,88656.0,0.02259058]
[1769490236552,0.0001465,88671.0,88656.0,0.02259058]
[1769490236759,0.11232644,88670.0,88656.0,0.02259058]
[1769490236956,0.11232644,88669.0,88656.0,0.02259058]
[1769490237132,0.11232644,88668.0,88656.0,0.02259058]
[1769490237335,0.11232644,88667.0,88656.0,0.02259058]
[1769490237502,0.11232644,88666.0,88656.0,0.02259058]
[1769490237707,0.11232644,88665.0,88656.0,0.02259058]
[1769490237987,0.0001465,88671.0,88656.0,0.02259058]
[1769490237988,0.11232644,88664.0,88656.0,0.02259058]
[1769490238199,0.11232644,88663.0,88656.0,0.02259058]
[1769490238401,0.11232644,88662.0,88656.0,0.02259058]
[1769490238576,0.11232644,88661.0,88656.0,0.02259058]
[1769490238760,0.0001465,88671.0,88656.0,0.02259058]
[1769490238961,0.11233865,88670.0,88656.0,0.02259058]
[1769490239203,0.11233865,88669.0,88656.0,0.02259058]
[1769490239403,0.11233865,88668.0,88656.0,0.02259058]
[1769490239619,0.11233865,88667.0,88656.0,0.02259058]
[1769490239934,0.11233865,88666.0,88656.0,0.02259058]
[1769490240130,0.11233865,88665.0,88656.0,0.02259058]
[1769490240360,0.11233865,88664.0,88656.0,0.02259058]
[1769490240563,0.11233865,88663.0,88656.0,0.02259058]
[1769490240762,0.11233865,88662.0,88656.0,0.02259058]
[1769490241102,0.11233865,88661.0,88658.0,0.02461518]
[1769490241306,0.01142414,88671.0,88642.0,0.01161132]
[1769490241503,0.5947452,88670.0,88644.0,0.02461518]
[1769490241726,0.12360042,88669.0,88647.0,0.46625857]
[1769490241928,0.02310253,88666.0,88648.0,0.02461518]
[1769490242128,0.58346743,88665.0,88648.0,0.02461518]
[1769490242310,0.11232253,88664.0,88648.0,0.02461518]
[1769490242516,0.58346743,88663.0,88648.0,0.02461518]
[1769490242713,0.01127929,88658.0,88641.0,0.02466188]
[1769490242930,0.01127929,88658.0,88614.0,0.0001465]
[1769490242931,0.50595762,88653.0,88633.0,0.49087375]
[1769490243141,0.12357836,88652.0,88633.0,0.49092049]
[1769490243491,0.11225016,88651.0,88633.0,0.49092049]
[1769490243653,0.02353279,88652.0,88633.0,0.49092049]
[1769490243865,0.11224976,88651.0,88633.0,0.49092049]
[1769490244048,0.01127993,88653.0,88634.0,0.02461518]
[1769490244457,0.01127993,88653.0,88634.0,0.46625857]
[1769490244660,0.01128006,88652.0,88635.0,0.02461518]
[1769490244860,0.01127993,88653.0,88635.0,0.02461518]
[1769490245553,0.01128006,88652.0,88635.0,0.02461518]
[1769490245758,0.01127993,88653.0,88635.0,0.02461518]
[1769490246421,0.06767968,88653.0,88635.0,0.02461518]
[1769490246612,0.4711449,88650.0,88635.0,0.02461518]
[1769490248199,0.03587429,88652.0,88635.0,0.02461518]
[1769490249177,0.0112798,88654.0,88635.0,0.02461518]
[1769490249497,0.4711449,88655.0,88636.0,0.02467393]
[1769490249678,0.4711449,88655.0,88637.0,0.46625857]
[1769490249873,0.4711449,88655.0,88638.0,0.46625857]
[1769490250071,0.4711449,88655.0,88639.0,0.02467393]
[1769490251083,0.4711449,88655.0,88640.0,0.02467393]
[1769490253922,0.48242457,88655.0,88640.0,0.02467393]
[1769490254793,0.0112798,88654.0,88640.0,0.02467393]
[1769490255098,0.0112798,88654.0,88634.0,0.46625857]
[1769490255099,0.48307696,88653.0,88633.0,4.674e-05]
[1769490255302,0.4711449,88651.0,88633.0,4.674e-05]
[1769490255684,0.4711449,88651.0,88633.0,0.02472067]
[1769490256085,0.4711449,88651.0,88633.0,0.46630531]
[1769490256425,0.4711449,88651.0,88634.0,0.02467393]
[1769490259539,0.48242508,88651.0,88634.0,0.02467393]
[1769490259980,0.48242508,88651.0,88635.0,0.02467393]
[1769490261235,0.01128031,88650.0,88635.0,0.02467393]
[1769490261658,0.4711449,88651.0,88635.0,0.02467393]
[1769490262447,0.48242508,88651.0,88635.0,0.49175933]
[1769490262661,0.4711449,88651.0,88636.0,0.02467393]
[1769490263488,0.48242508,88651.0,88636.0,0.02467393]
[1769490266235,0.0563987,88655.0,88636.0,0.02467393]
[1769490266236,0.02252975,88648.0,88636.0,0.01867393]
[1769490266439,0.0112812,88643.0,88633.0,4.674e-05]
[1769490266873,0.01128107,88644.0,88633.0,4.674e-05]
[1769490267271,0.01128133,88642.0,88633.0,4.674e-05]
[1769490267476,0.0112812,88643.0,88633.0,4.674e-05]
[1769490267687,0.01128107,88644.0,88633.0,4.674e-05]
[1769490268333,0.01128082,88646.0,88633.0,4.674e-05]
[1769490269473,0.01128082,88646.0,88634.0,0.02414578]
[1769490270031,0.01128095,88645.0,88635.0,0.02414578]
[1769490270242,0.01128082,88646.0,88635.0,0.02414578]
[1769490270441,0.01128095,88645.0,88635.0,0.02414578]
[1769490270644,0.01128095,88645.0,88636.0,0.02414578]
[1769490270989,0.01804581,88645.0,88636.0,0.02414578]
[1769490271404,0.02932676,88645.0,88636.0,0.02414578]
[1769490271820,0.01804581,88645.0,88636.0,0.02414578]
[1769490272736,0.02932676,88645.0,88636.0,0.02414578]
[1769490273155,0.02252975,88647.0,88636.0,0.02414578]
[1769490273714,0.02252975,88647.0,88633.0,4.674e-05]
[1769490273715,0.0112812,88643.0,88633.0,4.674e-05]
[1769490273902,0.01128095,88645.0,88633.0,4.674e-05]
[1769490274527,0.01128107,88644.0,88633.0,4.674e-05]
[1769490275924,0.0112812,88643.0,88633.0,4.674e-05]
[1769490276480,0.01128082,88646.0,88633.0,4.674e-05]
[1769490276876,0.02252975,88647.0,88633.0,4.674e-05]
[1769490276877,0.03381044,88647.0,88633.0,4.674e-05]
[1769490277237,0.12349949,88646.0,88633.0,4.674e-05]
[1769490277450,0.02252975,88647.0,88635.0,0.02414578]
[1769490278639,0.03381044,88647.0,88635.0,0.02414578]
[1769490278846,0.03381044,88647.0,88636.0,0.49175933]
[1769490279047,0.02252975,88647.0,88637.0,0.02414578]
[1769490279193,0.02252975,88647.0,88637.0,0.49175933]
[1769490279508,0.02252975,88647.0,88638.0,0.02414578]
[1769490279708,0.03381044,88647.0,88638.0,0.02414578]
[1769490280582,0.02252975,88647.0,88638.0,0.02414578]
[1769490280737,0.03381044,88647.0,88638.0,0.02414578]
[1769490281309,0.01128082,88646.0,88638.0,0.02414578]
[1769490281783,0.03381044,88647.0,88638.0,0.02414578]
[1769490282170,0.01128095,88645.0,88638.0,0.02414578]
[1769490282382,0.01128082,88646.0,88638.0,0.02414578]
[1769490282531,0.01128095,88645.0,88638.0,0.02414578]
[1769490283133,0.11221803,88644.0,88638.0,0.02414578]
[1769490283369,0.01128082,88646.0,88638.0,0.02414578]
[1769490283579,0.1234983,88645.0,88638.0,0.02414578]
[1769490283776,0.11221735,88644.0,88638.0,0.02414578]
[1769490283972,0.11221735,88643.0,88640.0,0.49175933]
[1769490284175,0.02252975,88647.0,88640.0,0.49175933]
[1769490284491,0.11221752,88646.0,88640.0,0.49175933]
[1769490284694,0.11221752,88645.0,88641.0,0.02414578]
[1769490285008,0.11221752,88644.0,88641.0,0.02414578]
[1769490285172,0.11221752,88643.0,88641.0,0.02414578]
[1769490285374,0.02252975,88647.0,88641.0,0.02414578]
[1769490285614,0.11221773,88646.0,88641.0,0.02414578]
[1769490285926,0.11221773,88645.0,88641.0,0.02414578]
[1769490286089,0.11221773,88644.0,88635.0,0.51590511]
[1769490286294,0.11221773,88643.0,88635.0,0.51590511]
[1769490286492,0.03381044,88647.0,88635.0,0.02414578]
[1769490286674,0.11221815,88646.0,88635.0,0.02414578]
[1769490286874,0.11221815,88645.0,88635.0,0.02414578]
[1769490287103,0.11221815,88644.0,88635.0,0.02414578]
[1769490287346,0.11221815,88643.0,88635.0,0.02414578]
[1769490287499,0.11222649,88642.0,88635.0,0.02414578]
[1769490287713,0.02252975,88647.0,88635.0,0.02414578]
[1769490287949,0.11222665,88646.0,88635.0,0.02414578]
[1769490288129,0.11222665,88645.0,88637.0,0.02414578]
[1769490288327,0.11222665,88644.0,88637.0,0.02414578]
[1769490288538,0.11222665,88643.0,88637.0,0.49175933]
[1769490288781,0.11222665,88642.0,88640.0,0.02414578]
[1769490288957,0.02252975,88647.0,88640.0,0.02414578]
[1769490289162,0.11222283,88646.0,88640.0,0.02414578]
[1769490289461,0.11222283,88645.0,88640.0,0.02414578]
[1769490289656,0.11222283,88644.0,88640.0,0.02414578]
[1769490289804,0.11222283,88643.0,88640.0,0.02414578]
[1769490290004,0.11222283,88642.0,88640.0,0.02414578]
[1769490290243,0.02252975,88647.0,88640.0,0.02414578]
[1769490290424,0.1122295,88646.0,88640.0,0.02414578]
[1769490290799,0.1122295,88645.0,88640.0,0.02414578]
[1769490290971,0.1122295,88644.0,88640.0,0.02414578]
[1769490291198,0.1122295,88643.0,88641.0,0.02414578]
[1769490291409,0.1122295,88642.0,88641.0,0.02414578]
[1769490291558,0.1122295,88646.0,88641.0,0.02414578]
[1769490291770,0.1122295,88645.0,88641.0,0.02414578]
[1769490291971,0.1122295,88644.0,88641.0,0.02414578]
[1769490292193,0.1122295,88643.0,88641.0,0.02414578]
[1769490292371,0.1122295,88642.0,88641.0,0.02414578]
[1769490292810,0.01128031,88650.0,88641.0,0.02414578]
[1769490293046,0.02252975,88665.0,88633.0,4.674e-05]
[1769490293047,0.02252975,88648.0,88635.0,0.02326359]
[1769490293297,0.01128018,88651.0,88637.0,0.02326359]
[1769490293474,0.01128006,88652.0,88640.0,0.47714304]
[1769490293770,0.01127993,88653.0,88643.0,0.02326359]
[1769490294003,0.01127993,88653.0,88644.0,0.02326359]
[1769490294214,0.01128006,88652.0,88644.0,0.02326359]
[1769490294415,0.06768048,88652.0,88644.0,0.02326359]
[1769490295176,0.01128006,88652.0,88644.0,0.02326359]
[1769490295451,0.01128018,88651.0,88644.0,0.02326359]
[1769490295814,0.01127967,88655.0,88645.0,0.47714304]
[1769490296020,0.01127967,88655.0,88647.0,0.47714304]
[1769490296376,0.01127967,88655.0,88648.0,6.359e-05]
[1769490296537,0.01127993,88653.0,88648.0,6.359e-05]
[1769490297457,0.01127993,88653.0,88647.0,0.47714304]
[1769490297765,0.05639833,88657.0,88647.0,0.47714304]
[1769490297766,0.01127917,88659.0,88649.0,0.47714304]
[1769490297942,0.01127929,88658.0,88651.0,0.47714304]
[1769490298147,0.01127967,88655.0,88647.0,0.05004066]
[1769490298480,0.0112798,88654.0,88645.0,0.47714304]
[1769490298686,0.01127993,88653.0,88645.0,0.47714304]
[1769490298843,0.01128006,88652.0,88645.0,0.47714304]
[1769490299776,0.01128018,88651.0,88645.0,0.47714304]
[1769490299962,0.01128006,88652.0,88645.0,0.47714304]
[1769490300160,0.01127993,88653.0,88645.0,0.47714304]
[1769490301263,0.01128031,88650.0,88645.0,0.50040663]
[1769490301801,0.01128044,88649.0,88645.0,0.50040663]
[1769490301980,0.01128031,88650.0,88645.0,0.50040663]
[1769490302196,0.01128006,88652.0,88645.0,0.50040663]
[1769490302612,0.01127993,88653.0,88645.0,0.50040663]
[1769490302807,0.01128018,88651.0,88645.0,0.50040663]
[1769490304023,0.01128006,88652.0,88645.0,0.50040663]
[1769490304924,0.11226647,88651.0,88645.0,0.50040663]
[1769490305142,0.11226647,88650.0,88645.0,0.47714304]
[1769490305382,0.11226647,88649.0,88645.0,0.47714304]
[1769490305586,0.01128006,88652.0,88645.0,0.47714304]
[1769490305784,0.11226369,88651.0,88645.0,0.47714304]
[1769490306021,0.11226369,88650.0,88645.0,0.47714304]
[1769490306202,0.11226369,88649.0,88645.0,0.47714304]
[1769490306407,0.11226369,88648.0,88645.0,0.47714304]
[1769490306608,0.01128006,88652.0,88645.0,0.47714304]
[1769490306846,0.11226159,88651.0,88645.0,0.47714304]
[1769490307059,0.11226159,88650.0,88645.0,0.47714304]
[1769490307310,0.11226159,88649.0,88645.0,0.47714304]
[1769490307501,0.11226159,88648.0,88645.0,0.47714304]
[1769490307714,0.01127993,88653.0,88645.0,0.47714304]
[1769490307898,0.11226762,88652.0,88645.0,0.47714304]
[1769490308035,0.11226762,88651.0,88645.0,0.47714304]
[1769490308237,0.11226762,88650.0,88645.0,0.47714304]
[1769490308444,0.11226762,88649.0,88645.0,0.47714304]
[1769490308699,0.11226762,88648.0,88645.0,0.47714304]
[1769490308904,0.11226762,88647.0,88645.0,0.47714304]
[1769490309108,0.01127955,88656.0,88645.0,0.47714304]
[1769490309430,0.0112798,88654.0,88645.0,0.47714304]
[1769490309602,0.11228937,88653.0,88645.0,0.47714304]
[1769490309983,0.11228937,88652.0,88645.0,0.47714304]
[1769490310222,0.11228937,88651.0,88645.0,0.47714304]
[1769490310397,0.11228937,88650.0,88645.0,0.47714304]
[1769490310609,0.0112798,88654.0,88645.0,0.50040663]
[1769490310610,0.11228937,88649.0,88645.0,0.50040663]
[1769490310816,0.11228937,88648.0,88645.0,0.50040663]
[1769490311023,0.11228937,88647.0,88645.0,0.50040663]
[1769490311229,0.0112798,88654.0,88645.0,0.50040663]
[1769490311429,0.11229205,88653.0,88645.0,0.50040663]
[1769490311608,0.11229205,88652.0,88645.0,0.50040663]
[1769490311774,0.11229205,88651.0,88645.0,0.50040663]
[1769490311979,0.11229205,88650.0,88645.0,0.50024997]
[1769490312226,0.11229205,88649.0,88646.0,0.02326359]
[1769490312421,0.11229205,88648.0,88647.0,0.47714304]
[1769490312816,0.01127929,88658.0,88647.0,0.47714304]
[1769490313135,0.01127955,88656.0,88647.0,0.47714304]
[1769490313344,0.01127942,88657.0,88647.0,0.47714304]
[1769490314405,0.01127955,88656.0,88647.0,0.47714304]
[1769490315237,0.01127967,88655.0,88647.0,0.47714304]
[1769490315440,0.01127955,88656.0,88647.0,0.47714304]
[1769490315980,0.01127967,88655.0,88647.0,0.47714304]
[1769490316536,0.0112798,88654.0,88647.0,0.47714304]
[1769490316745,0.01127993,88653.0,88647.0,0.47714304]
[1769490316942,0.0112798,88654.0,88647.0,0.47714304]
[1769490317396,0.01127993,88653.0,88647.0,0.47692988]
[1769490317607,0.0112798,88654.0,88647.0,0.47692988]
[1769490317821,0.01127993,88653.0,88647.0,0.47692988]
[1769490318188,0.0112798,88654.0,88641.0,0.50040663]
[1769490318412,0.01128006,88652.0,88635.0,0.02326359]
[1769490318642,0.02252975,88652.0,88633.0,4.674e-05]
[1769490318857,0.48598651,88641.0,88633.0,4.674e-05]
[1769490319017,0.0247512,88640.0,88633.0,4.674e-05]
[1769490322617,0.08986754,88658.0,88621.0,0.11596]
[1769490322804,0.08986754,88658.0,88605.0,0.0001465]
[1769490322805,0.01128311,88628.0,88615.0,0.46408368]
[1769490323017,0.01128298,88629.0,88615.0,0.46408368]
[1769490323211,0.0340903,88630.0,88615.0,0.46408368]
[1769490323411,0.02280744,88630.0,88615.0,0.46408368]
[1769490323620,0.0112826,88632.0,88615.0,0.46408368]
[1769490323824,0.02280744,88630.0,88615.0,0.46408368]
[1769490324024,0.02280744,88630.0,88615.0,0.46413042]
[1769490327701,0.01128311,88628.0,88615.0,0.46413042]
[1769490327916,0.0340903,88630.0,88615.0,0.46413042]
[1769490327917,0.02280744,88630.0,88615.0,0.46413042]
[1769490333325,0.01128235,88634.0,88615.0,4.674e-05]
[1769490333326,0.02280744,88628.0,88615.0,4.674e-05]
[1769490334323,0.02280744,88626.0,88615.0,4.674e-05]
[1769490339610,0.02280744,88624.0,88615.0,4.674e-05]
[1769490339810,0.47269123,88623.0,88615.0,4.674e-05]
[1769490340024,0.02280744,88621.0,88615.0,4.674e-05]
[1769490341717,0.02280744,88628.0,88615.0,4.674e-05]
[1769490341945,0.02280744,88626.0,88615.0,4.674e-05]
[1769490342497,0.02280744,88626.0,88609.0,0.46408368]
[1769490342715,0.02280744,88626.0,88609.0,0.46413037]
[1769490344511,0.49549867,88625.0,88609.0,0.46413037]
[1769490347264,0.49549867,88623.0,88609.0,4.669e-05]
[1769490347482,0.47269123,88628.0,88609.0,4.669e-05]
[1769490347701,0.02280744,88625.0,88609.0,4.669e-05]
[1769490347880,0.02280744,88623.0,88609.0,4.669e-05]
[1769490348802,0.47269123,88622.0,88609.0,4.669e-05]
[1769490348960,0.02280744,88623.0,88609.0,4.669e-05]
[1769490349865,0.47269123,88627.0,88609.0,0.46413037]
[1769490350065,0.11204164,88626.0,88609.0,0.46413037]
[1769490350401,0.02280744,88626.0,88609.0,0.46413037]
[1769490350602,0.02280744,88625.0,88609.0,0.46413037]
[1769490350859,0.49549867,88625.0,88609.0,0.46413037]
[1769490351598,0.1121079,88624.0,88609.0,0.46413037]
[1769490351821,0.49549867,88625.0,88609.0,0.46413037]
[1769490352022,0.1121079,88624.0,88609.0,0.46413037]
[1769490352213,0.49549867,88625.0,88609.0,4.669e-05]
[1769490352450,0.11216642,88624.0,88609.0,4.669e-05]
[1769490353264,0.13655712,88624.0,88609.0,4.669e-05]
[1769490353471,0.59528245,88623.0,88609.0,4.669e-05]
[1769490353669,0.11216642,88622.0,88609.0,4.669e-05]
[1769490356669,0.01128349,88625.0,88597.0,0.44098797]
[1769490356670,0.01128502,88613.0,88597.0,0.44098797]
[1769490356909,0.01128502,88613.0,88582.0,0.17472]
[1769490356910,0.48311603,88611.0,88588.0,0.44113447]
[1769490357137,0.0243907,88609.0,88591.0,0.44098797]
[1769490363269,0.32907631,88610.0,88591.0,0.44098797]
[1769490364563,0.0001401,88613.0,88591.0,0.44098797]
[1769490364756,0.0001401,88613.0,88594.0,0.02291241]
[1769490365274,0.0001401,88613.0,88595.0,0.44098797]
[1769490367040,0.0001401,88613.0,88596.0,0.44113447]
[1769490367303,0.0001401,88613.0,88596.0,0.46404688]
[1769490367749,0.0001401,88613.0,88596.0,0.44113447]
[1769490367960,0.0001401,88613.0,88598.0,0.44098797]
[1769490370266,0.0001401,88613.0,88600.0,0.44098797]
[1769490370471,0.01142512,88613.0,88600.0,0.44098797]
[1769490370751,0.0001401,88613.0,88596.0,0.02305891]
[1769490370967,0.01128528,88611.0,88596.0,0.46404688]
[1769490371158,0.01128553,88609.0,88596.0,0.46404688]
[1769490371365,0.0112854,88610.0,88596.0,0.46404688]
[1769490371622,0.01128642,88602.0,88596.0,0.0001465]
[1769490371809,0.01128642,88602.0,88574.0,0.0002]
[1769490371810,0.02117203,88568.0,88567.0,0.46410038]
[1769490372020,0.02099349,88568.0,88567.0,0.46410038]
[1769490372973,0.02113346,88568.0,88567.0,0.46410038]